Cogmind - Beta 12 @@@ ROGUE MODE // 2023.11.08 @ 16:37:21 Player: Figgis Result: Destroyed by as-19491 with Assembled Blade Performance ------------- Evolutions (0) 0 Regions Visited (2) 400 Robots Destroyed (16) 80 Value Destroyed (326) 326 Prototype IDs (2) 40 Alien Tech Used (0) 0 Bonus (0) 0 TOTAL SCORE: 846 Bonus ------- None Cogmind --------- Core Integrity 0/250 Matter 236/300 Energy 250/250 System Corruption 0% Temperature Cool (0) Movement Walking (260) Ox2 Location -10/Mines Parts ------- > --- POWER (1) -------- Ion Engine > --- PROPULSION (2) --- Aluminum Leg > --- UTILITY (2) ------ Large Storage Unit > --- WEAPON (2) ------- Beam Cannon Assault Rifle > --- INVENTORY (15) --- Ion Engine Aluminum Leg Aluminum Leg Aluminum Leg Aluminum Leg Heat Sink Improved Heat Sink Huge Storage Unit Targeting Computer Utility Shielding Light Armor Plating Light Armor Plating Assault Rifle Peak State ------------ > --- POWER ------------ Ion Engine > --- PROPULSION ------- Aluminum Leg Aluminum Leg > --- UTILITY ---------- Large Storage Unit Structural Scanner > --- WEAPON ----------- Assault Rifle Assault Rifle > --- INVENTORY -------- Ion Engine Ion Engine Aluminum Leg Aluminum Leg Heat Sink Huge Storage Unit Utility Shielding Light Armor Plating Beam Cannon Assault Rifle [Rating: 8] Favorites ----------- Power Ion Engine Engine Ion Engine Propulsion Aluminum Leg Leg Aluminum Leg Utility Structural Scanner Device Structural Scanner Storage Small Storage Unit Weapon Assault Rifle Energy Cannon Beam Cannon Ballistic Gun Assault Rifle Build | -11 -10 -10 ------- Run | Jun Mat Min Slots Evolved . | . . . Power . | . . . Propulsion . | . . . Utility . | . . . Weapon . | . . . Parts Attached 21 | 3 13 5 Power 3 | 1 1 1 Engine 3 | 1 1 1 Core . | . . . Reactor . | . . . Propulsion 5 | 2 1 2 Treads . | . . . Leg 5 | 2 1 2 Wheel . | . . . Hover . | . . . Flight . | . . . Utility 5 | . 5 . Device 1 | . 1 . Storage 4 | . 4 . Processor . | . . . Hackware . | . . . Protection . | . . . Artifact . | . . . Weapon 8 | . 6 2 Energy Gun . | . . . Energy Cannon 2 | . 1 1 Ballistic Gun 6 | . 5 1 Ballistic Cannon . | . . . Launcher . | . . . Special Weapon . | . . . Impact Weapon . | . . . Slashing Weapon . | . . . Piercing Weapon . | . . . Special Melee Weapon . | . . . Unidentified Prototypes . | . . . Parts Lost 5 | . 1 4 Power 1 | . . 1 Propulsion 3 | . 1 2 Utility 1 | . . 1 Weapon . | . . . Highest Loss Streak 4 | . 1 4 To Critical Strikes . | . . . Average Slot Usage (%) 95 | . 93 97 Engine 13 | . 14 13 Leg 27 | . 27 27 Device 11 | . 10 13 Storage 13 | . 13 14 Ballistic Gun 26 | . 25 27 Naked Turns . | . . . Heaviest Build 30 | 3 30 30 Greatest Support 20 | 3 20 20 Greatest Overweight (x) 2 | . 1 2 Average Overweight (x) . | . . 1 Largest Inventory Capacity 25 | 5 25 15 Average Capacity 10 | 5 8 15 Most Carried 15 | 5 8 15 Average Carried 9 | 3 6 12 Final Capacity 15 | 5 15 15 Final Carried 13 | 5 8 13 Class Distribution -------------------- 100% | Mutant Dominant Class ---------------- Mutant | -10/Materials Mutant | -10/Mines Resources | -11 -10 -10 ----------- Run | Jun Mat Min Matter Collected 587 | 230 249 108 Remotely . | . . . Salvage Created 454 | . 299 155 Parts 32 | . 26 6 Haulers Intercepted 1 | . 1 . Recyclers Shooed . | . . . Parts Field Recycled . | . . . Retrieved Matter . | . . . Parts Self-Destructed . | . . . Prevented . | . . . Kills | -11 -10 -10 ------- Run | Jun Mat Min Combat Hostiles Destroyed 16 | . 11 5 Guns 15 | . 11 4 Cannons 1 | . . 1 Classes Destroyed 6 | . 4 2 Hauler 1 | . 1 . Watcher 1 | . 1 . Swarmer 8 | . 8 . Grunt 5 | . 3 2 Sentry 1 | . . 1 Assembled 2 | . . 2 Best Kill Streak 3 | . 3 2 Combat Bots Only 3 | . 3 2 Max Kills in Single Turn 1 | . 1 1 Gunslinging . | . . . Exploded . | . . . Melee . | . . . Uniques/NPCs Destroyed . | . . . Combat | -11 -10 -10 -------- Run | Jun Mat Min Damage Taken 1173 | . 352 821 Core 262 | . 54 208 Absorbed by Shields . | . . . Core Remaining (%) 100 | 100 . . Volleys Fired 59 | . 41 18 Largest 2 | . 2 2 Hottest 80 | . 40 80 Shots Fired 113 | . 82 31 Gun 111 | . 82 29 Cannon 2 | . . 2 Launcher . | . . . Special . | . . . Kinetic 111 | . 82 29 Thermal 2 | . . 2 Explosive . | . . . Electromagnetic . | . . . Robot Hit Streak 9 | . 8 9 Robot Miss Streak 4 | . 4 2 Penetration Max . | . . . Secondary Targets 1 | . 1 . Max Gunslinging Chain 1 | . 1 . Shots Hit Robots 64 | . 42 22 Core Hits 27 | . 18 9 Critical Kills . | . . . Critical Parts Destroyed . | . . . Critical Strikes . | . . . Melee Attacks . | . . . Impact . | . . . Slashing . | . . . Piercing . | . . . Sneak Attacks . | . . . Combat Hostiles . | . . . Follow-up Attacks . | . . . Damage Inflicted 779 | . 492 287 Guns 759 | . 492 267 Cannons 18 | . . 18 Explosions . | . . . Melee . | . . . Ramming 2 | . . 2 Kinetic 759 | . 492 267 Thermal 18 | . . 18 Explosive . | . . . Electromagnetic . | . . . Impact . | . . . Slashing . | . . . Piercing . | . . . Highest Corruption . | . . . Average Corruption . | . . . Corruption Purged . | . . . Corruption Blocked . | . . . Overload Shots . | . . . Overflow Damage 14 | . . 14 Projectiles 14 | . . 14 Explosions . | . . . Melee . | . . . Knockbacks . | . . . Impact . | . . . Kinetic . | . . . Secondary . | . . . Self-Inflicted Damage . | . . . Shots . | . . . Rammed . | . . . Targets Rammed 1 | . . 1 Kicked 1 | . . 1 Crushed . | . . . Highest Temperature 56 | . 12 56 Average Temperature 13 | . 6 18 Received Heat Transfer 231 | . 48 183 Siege Activations . | . . . Robots Corrupted . | . . . Combat Hostiles . | . . . Parts Fried . | . . . Impact Corruptions . | . . . Robots Melted . | . . . Combat Hostiles . | . . . Parts Melted . | . . . Heat Transferred 37 | . . 37 Parts Sabotaged . | . . . Parts Stolen . | . . . Parts Stripped . | . . . Power Chain Reactions . | . . . Missiles Intercepted . | . . . Alert | -11 -10 -10 ------- Run | Jun Mat Min Peak Influence 262 | . 262 142 Initial 57 | . . 57 Average 101 | . 131 66 Maximum Alert Level 1 | . 1 . Low Security (%) 90 | 100 83 100 Level 1 9 | . 16 . Level 2 . | . . . Level 3 . | . . . Level 4 . | . . . Level 5 . | . . . High Security . | . . . Max Security . | . . . Squads Dispatched 1 | . 1 . Investigation . | . . . Extermination . | . . . Reinforcement 1 | . 1 . Assault . | . . . Garrison . | . . . Intercept . | . . . Searches Triggered . | . . . Construction Impeded . | . . . Haulers Reinforced . | . . . Active Scanning Responses . | . . . Cargo Convoy Interrupts . | . . . Stealth | -11 -10 -10 --------- Run | Jun Mat Min Distress Signals 2 | . 2 . Communications Jammed . | . . . Distress Signals . | . . . Times Spotted 29 | . 17 12 Peak Tracking Total 10 | . 3 10 Tactical Retreats 1 | . . 1 Traps | -11 -10 -10 ------- Run | Jun Mat Min Traps Triggered . | . . . Indirectly . | . . . Trap Hack Attempts . | . . . Triggered . | . . . Disarmed . | . . . Reprogrammed . | . . . Reused . | . . . Traps Extracted . | . . . Installed . | . . . Triggered . | . . . Machines | -11 -10 -10 ---------- Run | Jun Mat Min Machines Disabled . | . . . Max in Single Turn . | . . . Machines Repaired . | . . . Machines Sabotaged . | . . . Overloaded Fab Kills . | . . . Hacking | -11 -10 -10 --------- Run | Jun Mat Min Machines Accessed 7 | . 7 . Terminals 7 | . 7 . Fabricators . | . . . Repair Stations . | . . . Recycling Units . | . . . Scanalyzers . | . . . Garrison Access . | . . . Total Hacks 21 | . 21 . Successful 10 | . 10 . Failed 10 | . 10 . Catastrophic 1 | . 1 . Database Lockouts 1 | . 1 . Manual 14 | . 14 . Terminals 21 | . 21 . Fabricators . | . . . Repair Stations . | . . . Recycling Units . | . . . Scanalyzers . | . . . Garrison Access . | . . . Terminal Hacks 7 | . 7 . Robot Analysis 3 | . 3 . Prototype ID Bank 1 | . 1 . Hauler Manifests 1 | . 1 . Registered Components 1 | . 1 . Zone Layout 1 | . 1 . Fabricator Hacks . | . . . Repair Station Hacks . | . . . Recycling Unit Hacks . | . . . Scanalyzer . | . . . Garrison Access Hacks . | . . . Unauthorized Hacks 3 | . 3 . Terminals 3 | . 3 . Botnet 3 | . 3 . Fabricators . | . . . Repair Stations . | . . . Recycling Units . | . . . Scanalyzers . | . . . Garrison Access . | . . . Data Cores Recovered . | . . . Used . | . . . Hacking Detections 7 | . 7 . Full Trace Events 1 | . 1 . Feedback Events . | . . . Feedback Blocked . | . . . Robot Schematics Acquired . | . . . Robots Built . | . . . Authchips . | . . . Time . | . . . Total Robot Build Rating . | . . . Part Schematics Acquired . | . . . Parts Built . | . . . Authchips . | . . . Time . | . . . Total Part Build Rating . | . . . Parts Repaired . | . . . Time . | . . . Parts Recycled . | . . . Recycled Matter . | . . . Retrieved Matter . | . . . Retrieved Components . | . . . Parts Scanalyzed . | . . . Part Schematics Acquired . | . . . Parts Damaged . | . . . Bothacking | -11 -10 -10 ------------ Run | Jun Mat Min Used RIF Installer . | . . . Robots Hacked . | . . . Non-combat . | . . . Combat . | . . . Robot Hacks Applied . | . . . Relay Couplers Released . | . . . Fabnet Peak Effective % . | . . . Robots Rewired . | . . . Allies Hacked . | . . . Hacks Repelled . | . . . Allies | -11 -10 -10 -------- Run | Jun Mat Min Total Allies . | . . . Largest Group . | . . . Highest-Rated Group . | . . . Highest-Rated Ally . | . . . Total Orders . | . . . Ally Attacks . | . . . Total Damage . | . . . Kills . | . . . Allies Corrupted . | . . . Allies Melted . | . . . Intel | -11 -10 -10 ------- Run | Jun Mat Min Robot Analysis Total 2 | . 2 . Derelict Logs Recovered 1 | . . 1 Drone Launches . | . . . Drone Recoveries . | . . . Exploration | -11 -10 -10 ------------- Run | Jun Mat Min Turns Passed 1355 | 28 762 565 Spaces Moved 829 | 36 540 253 Core 114 | 36 78 . Treads . | . . . Legs 715 | . 462 253 Wheels . | . . . Hover . | . . . Flight . | . . . Fastest Speed 50 | 50 50 190 Average Speed 134 | 50 111 195 Slowest Speed 260 | 50 190 260 Overloaded Moves . | . . . Propulsion Burnouts . | . . . Robots Hopped . | . . . Cave-ins Triggered . | . . . Exploration Rate (%) 50 | 4 92 55 Regions Visited 2 Branch Regions 1 Pre-discovered Areas . | . . . Known Exits Taken . | . . . Unknown Exits Taken 2 | 1 1 . Scrap Searched 2 | . . 2 Spaces Dug . | . . . Terrain Destroyed . | . . . Melee . | . . . Projectile . | . . . AOE . | . . . Terrain Rammed . | . . . Walls Destroyed . | . . . Machines Disabled . | . . . Actions | -11 -10 -10 --------- Run | Jun Mat Min Total 966 | 45 629 292 Wait 18 | . 15 3 Move 827 | 35 539 253 Hop . | . . . Pick Up 29 | 7 12 10 Fast Attach 3 | 1 2 . Attach 10 | 2 5 3 Detach . | . . . Swap 8 | . 6 2 Drop 11 | . 9 2 Fire 59 | . 41 18 Melee . | . . . Ram . | . . . Kick 1 | . . 1 Crush . | . . . Escape Stasis . | . . . Rewire . | . . . Trap . | . . . Miscellaneous . | . . . Route ------- -11/Junkyard -10/Materials (discovered 4 exits: [*Mat x3] / [*Min]) -10/Mines (discovered 1 exit: [*Mat]) History --------- Turn | Location | Event 15 | -11/Junkyard | Discovered new exit (range 16) 29 | -11/Junkyard | Entered Materials 216 | -10/Materials | Discovered new exit (range 16) 318 | -10/Materials | Build established: Mutant 332 | -10/Materials | Discovered new exit (range 15) 456 | -10/Materials | Discovered new exit (range 10) 593 | -10/Materials | Central database locked down 593 | -10/Materials | Discovered new exit (range 14) 791 | -10/Materials | Entered Mines 791 | -10/Mines | Discovered new exit (range 9) 801 | -10/Mines | Learned Materials security intel 1291 | -10/Mines | Assembled infested the area 1313 | -10/Mines | Core integrity fell below 50% 1343 | -10/Mines | Core integrity fell below 20% 1353 | -10/Mines | Lost 4 parts (1p2n1u) 1356 | -10/Mines | Destroyed by as-19491 with Assembled Blade Last Messages --------------- 01163_ Acquired 24 matter. 01167_ Acquired Aluminum Leg. 01178_ Dropped Aluminum Leg. 01180_ Dropped Assault Rifle. 01181_ Acquired Imp. Heat Sink. 01182_ Acquired 20 matter. 01187_ Acquired Aluminum Leg. 01291_ ALERT: Infestation in the mines, dispatching Demolisher response squad. 01292_ T-07 Excavator destroyed. 01296_ Kicked U-05 Engineer. 01301_ R-06 Scavenger destroyed. 01312_ Structural Scanner destroyed. 01316_ Ion Engine destroyed. 01320_ Aluminum Leg destroyed. 01328_ as-99944 destroyed. 01330_ Assault Rifle severed. 01345_ Destroyed Asb. Hover Unit. 01345_ as-52491 destroyed. 01348_ Acquired Assault Rifle. Map ----- +----------------------------------------------------+ | ?????????????????????????????????????## """ #### | | ######????########???????????????????## #### | | #######??##########??????????????????########??## | | ## ####?### ###?????????????????########??## | | # ###?## ####?????????????????????????## | | # ##?## ####???????????????????????### | | ###### ####?????????????????????#### | | ####### ####????????????????????### | | # ###?###### ####??????????????????### | | # ############# ####???????????######### | | ## ############## ###################### | | ## ############# ############### | | ## ## ###### %= # | | # ## #### !! # | | #### #### ############# # | | ##### #### ############# ### ## | | ##### ##### ###????#### ####### | | ##?### #### ###????#### ######## | | ##?#### #### ####?###### ###????? | | ##??#### ## ########### ###????? | | ###??#### ######### ##????? | | ####??### ### ##????? | | ####???## #### ##????? | | ##?????## ##### ########## ###????? | | ???????### #### ############# ### ????? | | ???????#### """ ###@#???????##### ###?????? | | ????????#### """ ##a#??????????## ##??????? | | ?????????#### """ ##a############# ### ????? | | ??????????### ###a#############**### ##### | | ???????????## ##### a% % [%= # ##### | | ???????????## ################### ![! # | | ???????????## ####?###############=%* | | ???????????### ####???????????????## = ### | | ???????????#### ####????????????????## ##### | | ????????????### ###?????????????????## ###???? | | ?????????????## ######??????????????## #?????? | | ?????????????## ######??????????????### ?????? | | ?????????????## ##??????????????### ????? | | ?????????????###### ##???????????????## ##?? | | ?????????????###### ##???????????????## ###?? | | ??????????#####??## ##???????????????## #####?? | | ??????????#####??## ##????????????????? ####??? | | ?????????? ##??## ##????????????????# ##????? | | ??????????## ##??## ##????????????????## ????? | | ??????????## ###### ##????????????????## ?????? | | ?????????### ###### ##?????????????????? ?????? | | #####???#### #### ####???????????????? ???????? | | ######??### ### ####?????????????????????????? | | ###??## %##?????????????????????????? | | ###?## !##?????????????????????????? | +----------------------------------------------------+ Best States ------------- Heat Dissipation 25 Energy Generation 10 Energy Capacity 250 Matter Stores 300 Matter Capacity 300 Sight Range 16 Terrain Scan Density 10 Evasion (%) 55 Item Schematics ----------------- None Robot Schematics ------------------ None Fabricated ------------ Nothing Alien Tech Used ----------------- None Achievements -------------- None Challenges ------------ None Game ------ Seed MissileFactoryWheel Manual? 0 Play Time 00:10:08 Cumulative 103.6 hours Start 2023.11.08 @ 16:29:21 End 2023.11.08 @ 16:37:21 Sessions 1 Manual Loads 0 Difficulty Rogue Special Mode None Game No. 174 Rogue 171 Adventurer 3 Explorer 0 Win Type - Total 0 Types 0/0/0/0/0/0/0/0/0 Lore% 42 Gallery% 58 Achievement% 41 Wizard Run 0 Options --------- ASCII 0 Keyboard 0 Movement Mouse Keybinds 0 Fullscreen 2 Font 18/SmallcapsGlow Map View 76x50 Tactical HUD 1 Map Filters NONE Filters NONE Steam 1 RUN: bfa49988-6e5d-460c-a5f8-c8c1cb284539